bitfinex/quotes_ETHUSD_20250426
["timestamp","ask_amount","ask_price","bid_price","bid_amount"]
[1745698382581,11.61934246,1815.1,1814.7,0.29393574]
[1745698382582,0.75125878,1814.9,1814.6,0.28731875]
[1745698382784,5.51024906,1814.8,1814.5,0.7694]
[1745698382992,11.62024906,1814.8,1814.5,0.7694]
[1745698383176,12.73840743,1814.8,1814.5,0.7694]
[1745698383483,5.51060488,1814.7,1814.3,1.05675691]
[1745698383870,12.73853533,1814.8,1814.3,1.05675691]
[1745698384467,7.22815837,1814.8,1814.3,1.11186909]
[1745698384676,7.22815837,1814.8,1814.3,6.5684594]
[1745698384874,7.22815837,1814.8,1814.3,1.05675691]
[1745698385482,7.22815837,1814.8,1814.3,0.28735691]
[1745698385483,11.38297462,1814.7,1814.3,0.28735691]
[1745698385685,9.83281584,1814.7,1814.4,0.8058]
[1745698388201,9.83281584,1814.7,1814.3,0.28735691]
[1745698388405,15.34353649,1814.7,1814.3,0.28735691]
[1745698389101,6.26214121,1814.6,1814.3,0.28735691]
[1745698389262,4.32207936,1814.6,1814.3,0.28735691]
[1745698389462,3.57082058,1814.6,1814.3,0.28735691]
[1745698393299,3.57082058,1814.6,1814.4,0.17164955]
[1745698393699,3.57082058,1814.6,1814.3,0.28735691]
[1745698393939,3.57082058,1814.6,1814.5,0.1716373]
[1745698394237,9.08171199,1814.6,1814.5,0.1716373]
[1745698394398,9.08171199,1814.6,1814.3,0.28735691]
[1745698394728,9.08171199,1814.6,1814.5,0.1716373]
[1745698394931,9.08171199,1814.6,1814.4,0.17164955]
[1745698395249,9.08171199,1814.6,1814.5,0.1716373]
[1745698395534,9.08171199,1814.6,1814.3,0.28735691]
[1745698395711,9.08171199,1814.6,1814.5,0.1716373]
[1745698395912,9.08171199,1814.6,1814.4,0.17164955]
[1745698396106,9.08171199,1814.6,1814.5,0.1716373]
[1745698396500,9.08171199,1814.6,1814.3,0.28735691]
[1745698396697,9.08171199,1814.6,1814.5,0.1716373]
[1745698396895,8.51116009,1814.5,1814.4,0.17164955]
[1745698397233,8.51116009,1814.5,1813.6,4.719]
[1745698397234,5.51238845,1814.1,1813.9,0.8154]
[1745698397431,12.37338101,1814.2,1813.9,0.8154]
[1745698397736,5.51238935,1814.1,1813.9,0.8154]
[1745698397937,6.86125878,1814.2,1813.8,0.28711545]
[1745698398100,8.51249955,1814.1,1813.8,0.28711545]
[1745698398795,6.11,1814.2,1814.0,0.8154]
[1745698398998,8.18327936,1814.6,1814.0,6.96078153]
[1745698399799,13.69420335,1814.6,1814.0,6.96078153]
[1745698400034,8.18327936,1814.6,1814.0,6.96078153]
[1745698400238,13.69438865,1814.6,1814.0,0.8154]
[1745698400549,13.69438865,1814.6,1814.0,6.32804901]
[1745698401407,0.75125878,1814.4,1813.9,5.51286007]
[1745698402022,0.75125878,1814.4,1813.8,6.61058187]
[1745698402242,6.26288836,1814.4,1813.8,6.61058187]
[1745698402446,0.75125878,1814.2,1813.8,1.09741545]
[1745698402813,6.26333144,1814.2,1813.8,1.09741545]
[1745698403047,0.75125878,1814.2,1813.8,1.09741545]
[1745698403846,11.62195849,1814.3,1814.1,0.8103]
[1745698403847,6.11,1814.3,1814.1,0.8103]
[1745698405042,6.11,1814.3,1813.8,5.8001683]
[1745698405252,6.11,1814.3,1813.9,0.7736]
[1745698405545,6.11,1814.3,1813.9,6.28640477]
[1745698405750,6.11,1814.3,1814.1,5.5123345]
[1745698406742,6.11,1814.4,1814.0,5.51242693]
[1745698406949,6.11,1814.4,1814.0,5.51267916]
[1745698407762,6.11,1814.4,1814.0,5.51255343]
[1745698407962,6.11,1814.5,1814.1,0.7736]
[1745698408266,6.11,1814.5,1814.2,5.65708136]
[1745698408562,6.68082058,1814.6,1814.2,0.14505735]
[1745698408762,0.766,1814.5,1814.2,0.14505735]
[1745698409053,0.766,1814.5,1814.3,0.14504509]
[1745698409247,6.68082058,1814.6,1814.1,6.2857339]
[1745698409462,7.51002058,1814.6,1814.4,0.14503283]
[1745698409624,7.51002058,1814.6,1814.1,11.79789922]
[1745698409824,10.51002058,1814.6,1814.5,0.14502058]
[1745698410056,10.51002058,1814.6,1814.2,5.51206275]
[1745698410264,9.11,1814.6,1814.5,0.14502058]
[1745698410462,9.11,1814.6,1814.2,5.51206275]
[1745698410770,9.11,1814.6,1814.5,0.14502058]
[1745698410933,9.11,1814.6,1814.2,5.51206275]
[1745698411478,9.11,1814.6,1814.3,0.14504509]
[1745698413879,10.64718354,1814.6,1814.3,0.14504509]
[1745698414087,10.64718354,1814.6,1814.1,6.28580076]
[1745698414286,9.11,1814.6,1814.4,0.14529408]
[1745698414577,9.11,1814.6,1814.2,5.51206289]
[1745698414754,9.11,1814.6,1814.5,0.14528183]
[1745698414954,9.11,1814.6,1814.2,5.51206289]
[1745698415492,9.11,1814.6,1814.3,0.14530634]
[1745698418363,10.64718601,1814.6,1814.1,6.28576642]
[1745698418561,10.64718601,1814.6,1814.2,0.1453186]
[1745698418807,10.64718601,1814.6,1814.1,6.28576642]
[1745698418999,10.64718601,1814.6,1814.2,5.65733295]
[1745698420302,7.64718601,1814.6,1814.3,5.51174719]
[1745698420498,5.5482,1814.8,1814.4,6.32088794]
[1745698420499,10.829,1814.8,1814.4,6.32088794]
[1745698420704,6.11,1814.8,1814.5,5.51101123]
[1745698420887,6.86125878,1814.9,1814.5,5.65672796]
[1745698421062,6.86125878,1814.9,1814.6,5.51072568]
[1745698421378,6.86125878,1814.9,1814.6,0.1457399]
[1745698421779,6.86125878,1814.9,1814.4,11.83220074]
[1745698421981,6.86125878,1814.9,1814.5,0.14449805]
[1745698422396,6.86125878,1814.9,1814.5,5.65563757]
[1745698422634,8.18127041,1814.9,1814.5,5.65563757]
[1745698424139,8.18127041,1814.9,1814.5,0.14449805]
[1745698424840,6.26185299,1814.7,1814.5,0.14449805]
[1745698425046,6.26185299,1814.7,1814.2,0.8096]
[1745698425216,6.26185299,1814.7,1814.6,0.14281378]
[1745698425422,7.80015829,1814.7,1814.1,11.03978261]
[1745698425739,8.39956408,1814.7,1814.6,0.14281378]
[1745698425912,8.39956408,1814.7,1814.2,5.51193639]
[1745698426111,7.69045878,1814.7,1814.6,0.14281378]
[1745698426338,7.69045878,1814.7,1814.2,5.5118709]
[1745698426531,7.69045878,1814.7,1814.6,0.14281378]
[1745698426732,7.69045878,1814.7,1814.2,11.02367593]
[1745698426931,7.69045878,1814.7,1814.6,0.14281378]
[1745698427446,7.69045878,1814.7,1814.3,5.51176137]
[1745698427656,7.69045878,1814.7,1814.6,0.14281378]
[1745698427950,7.69045878,1814.7,1814.3,5.51176137]
[1745698428550,7.69045878,1814.7,1814.4,0.14283829]
[1745698429053,7.69045878,1814.7,1814.5,0.14282603]
[1745698429357,7.69045878,1814.7,1814.2,11.02371057]
[1745698429515,7.69045878,1814.7,1814.6,0.14359745]
[1745698429712,7.69045878,1814.7,1814.2,12.67878752]
[1745698429926,0.75125878,1814.5,1814.2,1.65513106]
[1745698430214,0.75125878,1814.5,1814.1,5.5276]
[1745698430215,13.20112266,1814.7,1814.1,5.5276]
[1745698430544,7.69045878,1814.7,1814.2,5.51195629]
[1745698431052,13.20101332,1814.7,1814.2,5.51195629]
[1745698431253,13.20101332,1814.7,1814.1,11.03980031]
[1745698437456,5.51092017,1814.6,1814.1,4.718]
[1745698437657,0.7993,1814.5,1814.1,5.7410485]
[1745698437859,0.7993,1814.5,1814.1,11.25341802]
[1745698438035,0.7993,1814.5,1814.2,0.13262194]
[1745698438235,0.7993,1814.5,1814.1,11.25341802]
[1745698438435,0.7993,1814.5,1814.3,0.13260968]
[1745698438631,6.11,1814.4,1813.9,6.61283994]
[1745698439350,6.11,1814.4,1814.0,5.51248573]
[1745698439537,6.11,1814.4,1814.1,5.51236886]
[1745698440242,6.11,1814.4,1814.0,5.51256981]
[1745698442182,13.17177032,1814.5,1813.9,11.3308066]
[1745698442384,13.17177032,1814.5,1813.9,13.0152011]
[1745698442683,13.17177032,1814.5,1814.0,5.51263714]
[1745698442986,7.66055878,1814.5,1814.0,5.51263714]
[1745698443989,5.51211983,1814.2,1813.9,0.28711393]
[1745698444148,6.11,1814.2,1813.9,0.28711393]
[1745698444347,6.11,1814.2,1813.9,6.56097486]
[1745698444588,6.11,1814.2,1813.9,7.21707235]
[1745698445757,6.11,1814.2,1813.9,1.70411142]
[1745698445959,0.7871,1814.1,1813.9,0.94321142]
[1745698446188,0.7871,1814.1,1813.9,0.28711393]
[1745698446362,6.299623,1814.1,1813.6,4.718]
[1745698446562,7.05088178,1814.1,1813.6,5.00517268]
[1745698446763,6.11,1814.2,1813.8,5.51312437]
[1745698447092,6.11,1814.2,1813.8,5.5130477]
[1745698447277,6.11,1814.2,1813.9,0.55130477]
[1745698447606,6.11,1814.2,1813.9,6.06427665]
[1745698447751,0.7871,1814.1,1813.7,5.51338868]
[1745698448165,0.7871,1814.1,1813.6,10.51883613]
[1745698448387,0.7871,1814.1,1813.7,5.5134795]
[1745698448552,0.7871,1814.1,1813.7,5.56860639]
[1745698448896,0.7871,1814.1,1813.7,7.12222375]
[1745698449202,5.51244563,1814.1,1813.6,5.00517268]
[1745698449363,0.7803,1814.0,1813.6,0.28717268]
[1745698449911,5.51300531,1813.9,1813.6,0.28717268]
[1745698450112,1.53155878,1813.8,1813.6,0.28717268]
[1745698450264,7.64155878,1813.8,1813.6,0.28717268]
[1745698450461,7.64155878,1813.8,1813.2,10.6428116]
[1745698450462,5.51480725,1813.3,1813.2,0.4098601]
[1745698450763,6.29499768,1813.4,1813.2,0.4098601]
[1745698450958,0.7803,1813.4,1813.2,0.4098601]
[1745698451158,0.7803,1813.4,1813.3,0.13508106]
[1745698451787,17.09286654,1813.7,1813.2,0.4098601]
[1745698451788,6.86125878,1813.7,1813.2,0.4098601]
[1745698451975,0.7803,1813.6,1813.3,0.03821356]
[1745698452278,6.29432309,1813.6,1813.3,0.12988023]
[1745698453379,0.7803,1813.6,1813.3,0.12988023]
[1745698454300,6.31190314,1813.4,1813.3,0.12988023]
[1745698454487,1.50371619,1813.4,1813.3,0.12988023]
[1745698454693,0.7974,1813.4,1813.3,0.12988023]
[1745698456203,15.42190314,1813.4,1813.3,0.12988023]
[1745698456437,16.17316192,1813.4,1813.3,0.12988023]
[1745698456567,12.4219097,1813.4,1813.2,0.4098601]
[1745698456763,6.11,1813.4,1813.2,0.4098601]
[1745698456995,6.11,1813.4,1813.3,0.12988023]
[1745698458106,12.37576192,1813.4,1813.3,0.12988023]
[1745698458273,6.86125878,1813.4,1813.3,0.12988023]
[1745698460299,6.11,1813.4,1813.3,0.12988023]
[1745698462104,12.37576192,1813.4,1813.3,0.12988023]
[1745698462320,14.93075897,1813.4,1813.3,0.12988023]
[1745698462602,17.93075897,1813.4,1813.3,0.12988023]
[1745698464104,5.51480725,1813.3,1813.2,0.4098601]
[1745698464316,11.62480725,1813.3,1813.2,0.4098601]
[1745698464617,11.62480725,1813.3,1813.2,0.54241685]
[1745698464921,12.87364871,1813.3,1813.2,0.54241685]
[1745698466174,13.63964871,1813.3,1813.2,0.54241685]
[1745698467307,13.63964871,1813.3,1813.2,0.4098601]
[1745698467613,13.63964871,1813.3,1813.2,0.54795368]
[1745698468411,12.39080725,1813.3,1813.2,0.54795368]
[1745698469504,6.11,1813.3,1813.2,0.54795368]
[1745698473390,11.62480725,1813.3,1813.2,0.54795368]
[1745698473883,6.11,1813.3,1813.2,1.34315368]
[1745698474083,3.0,1813.6,1813.2,1.34315368]
[1745698475475,8.51393401,1813.6,1813.2,1.34315368]
[1745698475699,3.0,1813.6,1813.2,1.34315368]
[1745698476011,6.11,1813.6,1813.2,7.54408665]
[1745698476213,6.11,1813.6,1813.2,7.59907085]
[1745698476383,6.11,1813.6,1813.4,5.51447435]
[1745698476707,6.11,1813.6,1813.5,0.13784776]
[1745698477088,6.11,1813.6,1813.3,11.81124516]
[1745698477283,6.11,1813.6,1813.5,0.13784776]
[1745698477612,6.11,1813.6,1813.4,1.31898455]
[1745698477814,6.11,1813.6,1813.5,0.13784776]
[1745698480083,12.37445984,1813.9,1813.5,0.13784776]
[1745698480923,12.37445984,1813.9,1813.6,0.13783549]
[1745698481300,12.37445984,1813.9,1813.3,6.29662258]
[1745698481820,5.5132946,1813.8,1813.3,6.29662258]
[1745698482023,5.5132946,1813.8,1813.4,0.13786003]
[1745698482324,5.5132946,1813.8,1813.3,6.29662258]
[1745698482511,7.08905371,1813.7,1813.5,0.13784776]
[1745698482746,7.79795908,1813.7,1813.4,0.13786003]
[1745698482911,7.79795908,1813.7,1813.6,0.13783549]
[1745698483221,7.79795908,1813.7,1813.5,0.13784776]
[1745698483526,7.79795908,1813.7,1813.6,0.13783549]
[1745698483987,7.79795908,1813.7,1813.3,0.782]
[1745698484181,1.57535878,1813.7,1813.6,0.13783549]
[1745698484388,1.57535878,1813.7,1813.3,0.782]
[1745698484583,1.57535878,1813.7,1813.6,0.13783549]
[1745698484798,1.57535878,1813.7,1813.3,0.782]
[1745698485426,1.57535878,1813.7,1813.4,0.13786003]
[1745698485626,0.75125878,1813.7,1813.4,0.13786003]
[1745698485917,6.11,1813.7,1813.5,0.13701176]
[1745698486291,6.11,1813.7,1813.3,6.2967815]
[1745698486497,6.11,1813.7,1813.6,0.13699949]
[1745698486713,6.11,1813.7,1813.3,6.2967815]
[1745698486913,6.11,1813.7,1813.6,0.13699949]
[1745698487115,6.11,1813.7,1813.3,6.2967815]
[1745698487316,6.11,1813.7,1813.6,0.13699949]
[1745698487516,6.11,1813.7,1813.3,6.2967815]
[1745698487727,6.11,1813.7,1813.6,0.13490936]
[1745698488021,6.11,1813.7,1813.3,6.2967815]
[1745698488189,6.11,1813.7,1813.2,1.1879601]
[1745698488190,12.37484978,1813.7,1813.2,1.1879601]
[1745698488391,5.51437126,1813.5,1813.3,0.13494618]
[1745698488628,13.13714285,1813.5,1813.3,0.13494618]
[1745698488810,6.82821743,1813.4,1813.3,0.13494618]
[1745698493200,13.55643916,1813.5,1813.3,0.13494618]
[1745698495032,6.11,1813.5,1813.3,0.89404618]
[1745698495544,6.11,1813.5,1813.3,6.40883227]
[1745698496209,6.11,1813.5,1813.3,0.89404618]
[1745698496511,6.11,1813.5,1813.3,1.57592869]
[1745698497015,6.11,1813.5,1813.3,7.09070001]
[1745698499037,17.93030382,1813.9,1813.3,7.09070001]
[1745698499241,3.0,1813.8,1813.3,7.09070001]
[1745698500439,8.51328784,1813.8,1813.3,7.09070001]
[1745698500607,8.51328784,1813.8,1813.3,1.57592869]
[1745698501759,5.51360632,1813.7,1813.3,1.57592869]
[1745698501942,0.75125878,1813.7,1813.3,1.57592869]
[1745698503357,8.51346055,1813.8,1813.3,1.57592869]
[1745698503654,3.0,1813.8,1813.3,7.09072878]
[1745698503955,17.93035618,1813.9,1813.4,6.22353128]
[1745698504124,17.93035618,1813.9,1813.3,7.09060245]
[1745698504330,17.93035618,1813.9,1813.3,12.60521598]
[1745698504515,17.93035618,1813.9,1813.4,5.51448633]
[1745698505016,17.93035618,1813.9,1813.5,0.13486938]
[1745698505353,17.93035618,1813.9,1813.3,6.95559309]
[1745698505529,17.93035618,1813.9,1813.6,0.13485711]
[1745698505727,5.51332825,1813.8,1813.3,6.27371058]
[1745698505925,5.51332825,1813.8,1813.7,0.13484485]
[1745698506153,5.51332825,1813.8,1813.3,0.7591]
[1745698506358,6.32399501,1813.6,1813.2,5.1388601]
[1745698506518,5.51426633,1813.5,1813.2,0.4098601]
[1745698507215,6.32417342,1813.6,1813.2,0.4098601]
[1745698507414,6.26547238,1813.5,1813.2,0.4098601]
[1745698508050,6.26546206,1813.5,1813.2,0.4098601]
[1745698508253,5.51455655,1813.4,1813.2,0.4098601]
[1745698508432,11.62455655,1813.4,1813.2,0.4098601]
[1745698508616,6.11,1813.4,1813.2,0.4098601]
[1745698509618,7.34756149,1813.4,1813.2,0.4098601]
[1745698510259,12.86213438,1813.4,1813.2,0.4098601]
[1745698510656,6.75213438,1813.4,1813.2,0.4098601]
[1745698510958,6.7520874,1813.4,1813.2,0.4098601]
[1745698512335,1.23756149,1813.4,1813.2,0.4098601]
[1745698512949,6.75207843,1813.4,1813.2,0.4098601]
[1745698513259,6.19001509,1813.3,1813.2,0.4098601]
[1745698513758,6.97751509,1813.3,1813.2,0.4098601]
[1745698514134,1.46270784,1813.3,1813.2,0.4098601]
[1745698514321,0.7875,1813.3,1813.2,0.4098601]
[1745698515122,6.75207843,1813.4,1813.2,0.4098601]
[1745698515327,12.86207843,1813.4,1813.2,0.4098601]
[1745698515633,12.86229923,1813.4,1813.2,0.4098601]
[1745698515960,5.51480725,1813.3,1813.2,0.4098601]
[1745698516150,7.31508427,1813.3,1813.2,0.4098601]
[1745698517482,1.80027702,1813.3,1813.2,0.4098601]
[1745698518672,6.11,1813.4,1813.2,1.2120601]
[1745698521187,6.11,1813.6,1813.2,1.2120601]
[1745698523658,6.11,1813.6,1813.2,6.72712369]
[1745698526964,11.62362949,1813.7,1813.2,6.72712369]
[1745698527164,13.63732344,1813.7,1813.2,6.72712369]
[1745698527604,8.12369395,1813.7,1813.2,6.72712369]
[1745698527759,6.11,1813.7,1813.3,5.51479483]
[1745698527965,9.11,1813.8,1813.4,0.7511]
[1745698528163,14.62329832,1813.8,1813.4,0.88781042]
[1745698528805,20.13688038,1813.8,1813.4,0.88781042]
[1745698528996,5.51360256,1813.7,1813.4,0.13671042]
[1745698529166,2.21361904,1813.7,1813.3,0.7511]
[1745698529367,7.7273325,1813.7,1813.5,0.13669815]
[1745698529568,0.7587,1813.6,1813.3,0.7511]
[1745698530080,6.27262189,1813.6,1813.3,0.7511]
[1745698530404,1.60732409,1813.6,1813.2,0.4098601]
[1745698530610,6.27263025,1813.6,1813.2,0.4098601]
[1745698530779,0.7587,1813.6,1813.2,0.4098601]
[1745698532215,0.7587,1813.6,1813.2,5.92493645]
[1745698532777,0.7587,1813.6,1813.2,0.4098601]
[1745698532976,6.8687,1813.6,1813.2,0.4098601]
[1745698540292,0.7827,1813.3,1813.2,0.4098601]
[1745698540824,1.53395878,1813.3,1813.2,0.4098601]
[1745698541829,7.04876603,1813.3,1813.2,0.4098601]
[1745698542322,10.04876603,1813.3,1813.2,0.4098601]
[1745698543294,10.04876603,1813.3,1813.2,0.54680406]
[1745698543494,11.62699352,1813.3,1813.2,0.54680406]
[1745698544889,11.65559352,1813.3,1813.2,0.54680406]
[1745698545308,11.65559352,1813.3,1812.4,0.7595]
[1745698545309,5.51645006,1812.8,1812.4,0.7595]
[1745698545508,6.9213,1812.9,1812.3,5.51764072]
[1745698545734,6.9213,1812.9,1812.4,6.2769341]
[1745698545914,12.43732719,1812.9,1812.4,2.1061871]
[1745698546114,13.18858597,1812.9,1812.4,2.1061871]
[1745698548341,13.18874444,1812.9,1812.4,2.1061871]
[1745698549139,5.51634765,1812.8,1812.4,2.1061871]
[1745698549307,13.18867294,1812.9,1812.4,0.89800567]
[1745698550041,13.61194555,1812.9,1812.4,0.89800567]
[1745698552246,8.09583139,1812.9,1812.4,6.41543754]
[1745698552544,12.86074739,1812.9,1812.4,0.89800567]
[1745698553049,18.37705504,1812.9,1812.4,0.89800567]
[1745698553345,5.51653857,1812.8,1812.4,0.89800567]
[1745698553550,5.51632833,1812.8,1812.4,0.89800567]
[1745698553840,15.07160272,1812.9,1812.4,0.89800567]
[1745698554046,5.5165532,1812.8,1812.4,0.89800567]
[1745698555554,8.80418363,1812.9,1812.4,6.41536736]
[1745698555761,12.86061042,1812.9,1812.5,0.64153674]
[1745698555957,12.86061042,1812.9,1812.4,6.41536736]
[1745698556167,12.86061042,1812.9,1812.6,0.14245369]
[1745698556754,7.34457261,1812.9,1812.6,0.14245369]
[1745698556960,7.34457261,1812.9,1812.4,6.27686169]
[1745698557535,7.34457261,1812.9,1812.5,0.14246597]
[1745698557725,12.86071235,1812.9,1812.5,0.14246597]
[1745698558657,7.34457261,1812.9,1812.5,0.14246597]
[1745698559154,6.53327261,1812.9,1812.5,0.78441394]
[1745698560259,3.0,1813.0,1812.6,0.8261]
[1745698560570,3.0,1813.0,1812.7,0.14244141]
[1745698560925,3.0,1813.0,1812.6,0.8261]
[1745698561324,3.0,1813.0,1812.7,0.14202307]
[1745698561666,3.0,1813.0,1812.6,0.8261]
[1745698561857,3.0,1813.0,1812.8,0.14201079]
[1745698562159,3.0,1813.0,1812.6,1.52461541]
[1745698562160,3.0,1813.0,1812.9,0.14199851]
[1745698562668,8.5157198,1813.0,1812.6,0.8261]
[1745698562880,8.5157198,1813.0,1812.7,0.14202307]
[1745698563466,8.5157198,1813.0,1812.8,0.14201079]
[1745698563681,3.0,1813.0,1812.6,0.8261]
[1745698563977,3.0,1813.0,1812.7,0.14202307]
[1745698564146,3.0,1813.0,1812.6,1.52462609]
[1745698564347,3.0,1813.0,1812.7,0.14202307]
[1745698564547,3.0,1813.0,1812.6,1.52462609]
[1745698564737,3.0,1813.0,1812.7,0.14202307]
[1745698564938,3.0,1813.0,1812.6,1.52462609]
[1745698565456,3.0,1813.0,1812.7,0.14202307]
[1745698565633,3.0,1813.0,1812.6,1.52462609]
[1745698565836,3.0,1813.0,1812.7,0.14202307]
[1745698566166,8.51572233,1813.0,1812.8,0.14201079]
[1745698566466,5.51602404,1812.9,1812.6,0.8261]
[1745698566877,5.51602404,1812.9,1812.7,0.14202307]
[1745698567080,5.51602404,1812.9,1812.5,0.8261]
[1745698567380,10.03027331,1813.0,1812.5,0.8261]
[1745698567584,10.03027331,1813.0,1812.6,0.14203535]
[1745698568972,5.51626134,1812.9,1812.6,0.14203535]
[1745698569488,5.51622709,1812.9,1812.6,0.14203535]
[1745698570090,5.51643674,1812.8,1812.6,0.14203535]
[1745698570384,4.51435878,1813.0,1812.6,0.14203535]
[1745698570584,5.51602678,1812.9,1812.6,0.14203535]
[1745698570750,5.51606279,1812.9,1812.6,0.14203535]
[1745698570957,6.27293264,1812.7,1812.6,0.14203535]
[1745698571200,5.51709102,1812.6,1812.1,5.5458]
[1745698571378,5.51709102,1812.6,1812.2,0.13194655]
[1745698571689,5.51709102,1812.6,1812.1,11.35146456]
[1745698571893,5.51709102,1812.6,1812.3,0.13193427]
[1745698572059,5.51709102,1812.6,1812.2,0.13194655]
[1745698572259,6.8663,1812.7,1812.2,5.51805663]
[1745698572460,6.11,1812.7,1812.3,0.95673427]
[1745698572988,7.02510457,1812.4,1812.3,0.13193427]
[1745698573201,5.51813757,1812.3,1811.8,0.8248]
[1745698573490,0.7563,1812.3,1811.8,0.8248]
[1745698573683,6.27431679,1812.3,1811.8,0.8248]
[1745698574092,0.7563,1812.3,1811.8,6.34415454]
[1745698574288,0.75125878,1812.4,1811.9,5.51904453]
[1745698574461,3.8064,1812.5,1812.0,0.804]
[1745698574663,9.32365078,1812.5,1812.0,0.804]
[1745698574963,6.26897286,1812.4,1811.8,6.32315734]
[1745698575291,5.51794862,1812.3,1811.8,0.804]
[1745698575513,1.16928219,1812.4,1811.9,5.51902515]
[1745698575800,0.75125878,1812.4,1811.9,6.70308433]
[1745698576297,6.26881049,1812.4,1811.9,5.51886356]
[1745698576458,0.75125878,1812.4,1811.9,5.51886356]
[1745698576659,9.32379392,1812.5,1812.1,0.804]
[1745698576897,6.11,1812.4,1811.9,6.3228784]
[1745698577518,6.11,1812.4,1811.9,0.804]
[1745698577812,6.11,1812.4,1812.2,0.804]
[1745698577977,6.11,1812.6,1812.3,5.51785024]
[1745698578372,6.11,1812.6,1812.2,6.9542253]
[1745698579306,6.11,1812.6,1812.2,1.43622879]
[1745698579469,6.11,1812.6,1812.1,6.30669813]
[1745698579669,6.11,1812.6,1812.1,6.30685787]
[1745698579910,6.11,1812.6,1812.2,5.51795126]
[1745698580211,6.11,1812.6,1812.2,5.51798209]
[1745698580498,6.11,1812.6,1812.2,6.70045287]
[1745698580665,6.11,1812.6,1812.2,6.70039223]
[1745698580860,6.11,1812.6,1812.3,5.51764706]
[1745698581090,6.11,1812.6,1812.2,6.70054037]
[1745698581593,6.11,1812.6,1812.3,5.51769252]
[1745698581909,6.11,1812.6,1812.2,6.70043776]
[1745698582071,6.11,1812.6,1812.3,6.18787766]
[1745698582610,6.11,1812.6,1812.4,5.51743617]
[1745698582782,6.11,1813.0,1812.8,5.51621003]
[1745698583097,6.11,1813.1,1812.8,5.51621003]
[1745698583885,6.11,1813.1,1812.9,5.51601375]
[1745698585602,6.11,1813.1,1812.8,11.0323429]
[1745698585799,6.11,1813.1,1812.8,6.69824282]
[1745698586103,0.8071,1813.0,1812.7,0.7884]
[1745698586470,0.8071,1813.0,1812.6,11.0271249]
[1745698587670,6.32297995,1813.0,1812.6,4.721]
[1745698587939,0.8071,1812.9,1812.4,4.721]
[1745698588201,6.9171,1812.9,1812.5,0.1102008]
[1745698588499,8.16039897,1812.9,1812.5,0.1102008]
[1745698589186,13.6765433,1812.9,1812.5,0.1102008]
[1745698589395,13.6765433,1812.9,1812.3,6.30603188]
[1745698589593,13.6765433,1812.9,1812.4,0.10896104]
[1745698589792,8.16039897,1812.9,1812.4,5.51753303]
[1745698589994,8.16039897,1812.9,1812.5,0.10894876]
[1745698590193,0.8160399,1812.8,1812.5,0.10894876]
[1745698591006,8.16039897,1812.9,1812.5,0.10894876]
[1745698591206,13.67646389,1812.9,1812.5,0.10894876]
[1745698591406,13.67646389,1812.9,1812.3,6.30603377]
[1745698591605,6.11,1812.8,1812.4,0.10896104]
[1745698591822,6.11,1812.8,1812.4,5.51739797]
[1745698592024,6.11,1812.8,1812.5,0.10894876]
[1745698592527,7.47764478,1812.8,1812.5,0.10894876]
[1745698593835,12.9940276,1812.8,1812.5,0.10894876]
[1745698594027,7.47764478,1812.8,1812.3,6.30613993]
[1745698594328,7.47764478,1812.8,1812.6,0.10909296]
[1745698594532,7.47764478,1812.8,1812.3,6.30608027]
[1745698594697,7.47764478,1812.8,1812.7,0.10908068]
[1745698594898,7.47764478,1812.8,1812.3,6.30608027]
[1745698595098,7.47764478,1812.8,1812.7,0.10918501]
[1745698595298,7.47764478,1812.8,1812.3,0.7884]
[1745698595544,7.47764478,1812.8,1812.7,0.10918501]
[1745698595715,7.47764478,1812.8,1812.3,6.30608392]
[1745698595916,7.47764478,1812.8,1812.7,0.10923717]
[1745698596434,7.47764478,1812.8,1812.3,6.30602766]
[1745698596750,7.47764478,1812.8,1812.7,0.10923717]
[1745698596934,7.47764478,1812.8,1812.3,6.30602766]
[1745698597113,7.47764478,1812.8,1812.7,0.10923717]
[1745698597302,7.47764478,1812.8,1812.3,6.30602766]
[1745698597502,7.47764478,1812.8,1812.7,0.10923717]
[1745698597742,7.47764478,1812.8,1812.3,6.30602766]
[1745698597894,7.47764478,1812.8,1812.7,0.10923717]
[1745698598098,7.47764478,1812.8,1812.3,6.30602766]
[1745698598301,7.47764478,1812.8,1812.7,0.10923717]
[1745698598804,7.47764478,1812.8,1812.3,6.30602766]
[1745698599004,6.11,1812.8,1812.4,0.10927402]
[1745698599198,6.11,1812.8,1812.3,6.30602766]
[1745698599399,6.11,1812.8,1812.4,0.10927402]
[1745698599718,6.11,1812.8,1812.3,6.30602766]
[1745698599918,6.11,1812.8,1812.5,0.10926174]
[1745698600102,7.39535752,1812.8,1812.4,0.10927402]
[1745698600302,7.39535752,1812.8,1812.6,0.10924945]
[1745698600530,7.39535752,1812.8,1812.5,0.10926174]
[1745698600741,6.11,1812.8,1812.7,0.10923717]
[1745698600945,6.11,1812.8,1812.6,0.10924945]
[1745698601234,6.11,1812.8,1812.7,0.11033251]
[1745698601444,6.11,1812.8,1812.4,5.51754525]
[1745698601606,6.11,1812.8,1812.7,0.11033251]
[1745698601938,6.84373838,1812.8,1812.4,5.51754525]
[1745698602101,6.11,1812.8,1812.7,0.11033251]
[1745698602307,6.11,1812.8,1812.7,0.805]
[1745698602605,6.11,1812.8,1812.7,0.91533251]
[1745698602809,15.39022833,1812.8,1812.7,0.11033251]
[1745698603128,6.28106626,1812.6,1812.1,0.805]
[1745698603296,5.51772171,1812.4,1812.0,5.526]
[1745698603503,0.7639,1812.3,1812.0,4.721]
[1745698605548,0.7639,1812.3,1811.9,0.28724213]
[1745698605549,6.28176409,1812.3,1811.9,0.28724213]
[1745698605732,0.7639,1812.3,1811.9,0.28724213]
[1745698605937,0.7639,1812.3,1811.9,6.93942117]
[1745698606453,0.7639,1812.4,1811.9,6.9394143]
[1745698608348,0.7639,1812.4,1811.9,1.42047969]
[1745698608651,11.799464,1812.4,1811.9,0.28724213]
[1745698608852,5.51789581,1812.3,1811.9,0.28724213]
[1745698609156,11.62789581,1812.3,1811.9,0.28724213]
[1745698609546,6.11,1812.3,1811.9,0.28724213]
[1745698611256,6.11,1812.3,1811.9,1.42048485]
[1745698611857,6.11,1812.3,1811.9,6.93938288]
[1745698612435,6.11,1812.3,1811.9,1.42048485]
[1745698616671,6.11,1812.3,1811.9,6.93954798]
[1745698616971,6.11,1812.3,1812.0,5.51856852]
[1745698617675,6.11,1812.3,1811.9,6.93937694]
[1745698618042,6.11,1812.3,1812.0,0.10333409]